bitfinex/quotes_ETHUSD_20250403
["timestamp","ask_amount","ask_price","bid_price","bid_amount"]
[1743670366214,0.22391647,1820.2,1819.8,0.17169049]
[1743670366408,0.22391647,1820.2,1820.0,5.49425]
[1743670366642,0.22391647,1820.2,1820.1,6.3081]
[1743670366843,8.285,1820.4,1820.2,5.49387]
[1743670367756,13.77851,1820.4,1820.0,5.49446]
[1743670367966,5.49371,1820.3,1820.0,5.49446]
[1743670368147,5.49371,1820.3,1820.0,10.98882]
[1743670368355,19.27207,1820.4,1820.0,5.49436]
[1743670368563,21.277937,1820.4,1820.0,5.49436]
[1743670369328,21.277937,1820.4,1820.0,5.66604364]
[1743670369530,5.49362,1820.3,1820.0,5.83772623]
[1743670369727,5.49362,1820.3,1820.0,0.34336623]
[1743670370357,0.22391647,1820.2,1820.0,0.34336623]
[1743670371366,0.22391647,1820.2,1820.0,0.17168259]
[1743670372045,0.22391647,1820.2,1820.0,5.66611259]
[1743670372363,5.28,1820.2,1820.0,6.31149385]
[1743670372535,0.22785301,1820.1,1820.0,6.31149385]
[1743670374039,0.22785301,1820.1,1820.0,6.48317596]
[1743670374262,0.22785301,1820.1,1820.0,5.8377947]
[1743670376165,0.22785301,1820.1,1820.0,7.23793535]
[1743670376568,11.455,1820.6,1820.4,5.49313]
[1743670377401,11.455,1820.6,1820.4,10.98632]
[1743670377609,11.455,1820.6,1820.4,5.49313]
[1743670377806,11.455,1820.6,1820.5,5.49299]
[1743670378099,12.68059,1820.6,1820.3,0.7952]
[1743670378395,18.1735,1820.6,1820.4,0.17168259]
[1743670378716,5.49299,1820.5,1820.4,0.17168259]
[1743670379685,5.49299,1820.5,1820.1,11.94276259]
[1743670379882,7.859633,1820.5,1820.1,11.94276259]
[1743670380481,5.278,1820.4,1820.2,5.49366]
[1743670380865,5.278,1820.4,1820.2,5.66534259]
[1743670383213,5.278,1820.4,1820.2,5.49366]
[1743670385222,5.278,1820.4,1820.2,5.66532908]
[1743670385437,0.1970671,1820.3,1820.2,0.17166908]
[1743670385625,0.1970671,1820.3,1820.2,5.66556908]
[1743670386418,0.1970671,1820.3,1820.2,8.43512976]
[1743670386734,5.269,1820.5,1820.4,5.49329]
[1743670386948,6.9988,1820.9,1820.5,0.7656]
[1743670387098,5.269,1820.8,1820.5,6.2585]
[1743670387302,5.269,1820.8,1820.6,5.49268]
[1743670387634,5.269,1820.8,1820.6,10.98528]
[1743670387935,5.269,1820.8,1820.7,0.17166626]
[1743670388444,5.269,1820.8,1820.7,0.34333534]
[1743670390857,13.755175,1820.8,1820.7,0.34333534]
[1743670391655,5.269,1820.8,1820.7,0.34333534]
[1743670392533,10.76109,1820.8,1820.7,0.34333534]
[1743670392852,5.269,1820.8,1820.7,0.34333534]
[1743670393956,5.269,1820.8,1820.7,0.17166626]
[1743670394371,10.76109,1820.8,1820.7,0.17166626]
[1743670394526,13.003381,1820.8,1820.7,0.17166626]
[1743670395349,13.003381,1820.8,1820.5,5.66457908]
[1743670395549,5.269,1820.8,1820.5,0.17166908]
[1743670395752,5.269,1820.8,1820.6,11.77707]
[1743670395951,5.269,1820.8,1820.6,6.28452]
[1743670396134,10.76111,1820.8,1820.5,5.66458908]
[1743670396338,5.49241,1820.7,1820.4,10.98642]
[1743670396654,10.76111,1820.8,1820.4,5.49316]
[1743670396962,10.76111,1820.8,1820.5,5.49298]
[1743670397156,13.003403,1820.8,1820.5,5.49298]
[1743670397538,13.003403,1820.8,1820.6,0.343293]
[1743670397872,18.495643,1820.8,1820.6,0.343293]
[1743670398268,13.003403,1820.8,1820.6,0.343293]
[1743670398567,18.495713,1820.8,1820.6,0.343293]
[1743670398866,18.495713,1820.8,1820.6,0.17164627]
[1743670399355,13.003403,1820.8,1820.6,0.17164627]
[1743670399661,5.269,1820.8,1820.6,5.49258]
[1743670400030,5.269,1820.8,1820.7,0.17163215]
[1743670400358,5.45099412,1820.8,1820.7,0.17163215]
[1743670400664,10.94308412,1820.8,1820.7,0.17163215]
[1743670401066,10.94308412,1820.8,1820.6,0.17163215]
[1743670401569,10.94308412,1820.8,1820.6,0.34327842]
[1743670401856,5.26,1820.7,1820.6,0.34327842]
[1743670402367,5.4419526,1820.7,1820.6,0.34327842]
[1743670403354,5.4419526,1820.7,1820.6,5.83596842]
[1743670403654,0.1819526,1820.7,1820.6,7.79085126]
[1743670403862,0.1819526,1820.7,1820.6,1.16527842]
[1743670404027,0.1819526,1820.7,1820.6,0.34327842]
[1743670409431,0.1819526,1820.7,1820.6,5.66433627]
[1743670409753,0.1819526,1820.7,1820.6,5.83597449]
[1743670410061,0.1819526,1820.7,1820.6,0.34328449]
[1743670411766,0.1819526,1820.7,1820.6,5.83597449]
[1743670414380,0.1819526,1820.7,1820.6,0.34328449]
[1743670414556,5.6743426,1820.7,1820.6,0.34328449]
[1743670414961,8.12480186,1820.7,1820.6,0.34328449]
[1743670415159,17.29480186,1820.7,1820.6,0.34328449]
[1743670415368,20.41216231,1820.7,1820.6,0.34328449]
[1743670415538,19.60436231,1820.7,1820.6,0.34328449]
[1743670415875,20.38676231,1820.7,1820.6,0.34328449]
[1743670416551,20.38676231,1820.7,1820.6,0.17164627]
[1743670416752,5.49391,1820.2,1820.0,0.34328449]
[1743670417074,5.4399633,1820.1,1820.0,0.34328449]
[1743670417559,5.4399633,1820.1,1820.0,0.17164627]
[1743670422539,12.02755063,1820.1,1820.0,0.17164627]
[1743670422745,12.02755063,1820.1,1819.4,3.0]
[1743670422746,5.4945,1820.0,1819.9,0.17164627]
[1743670423006,15.73457361,1820.0,1819.9,0.17164627]
[1743670423793,12.61721316,1820.0,1819.9,0.17164627]
[1743670424091,18.11200316,1820.0,1819.6,5.49566]
[1743670424317,20.59964295,1820.0,1819.6,5.49566]
[1743670424532,5.49481,1819.9,1819.6,5.49557]
[1743670424714,0.17814281,1819.8,1819.6,5.49557]
[1743670425325,0.17814281,1819.8,1819.5,5.66761627]
[1743670425506,0.17814281,1819.8,1819.5,5.66749627]
[1743670425707,0.17814281,1819.8,1819.6,5.49558]
[1743670425915,0.17814281,1819.8,1819.6,10.99113]
[1743670426108,0.17814281,1819.8,1819.7,0.7988]
[1743670427627,5.43914281,1819.8,1819.7,6.29421]
[1743670428742,5.43914281,1819.8,1819.7,7.49035063]
[1743670429110,5.43914281,1819.8,1819.7,7.6619969]
[1743670429736,5.43914281,1819.8,1819.7,8.2119969]
[1743670430237,5.43914281,1819.8,1819.7,7.01585627]
[1743670430404,5.43914281,1819.8,1819.7,6.21705627]
[1743670430738,5.43914281,1819.8,1819.7,0.17164627]
[1743670431513,14.85810326,1819.8,1819.7,0.17164627]
[1743670431712,21.02810326,1819.8,1819.7,0.17164627]
[1743670432044,21.11253614,1819.8,1819.7,0.17164627]
[1743670433102,5.49554,1819.7,1819.3,11.16459627]
[1743670433302,0.17681812,1819.6,1819.3,5.66810627]
[1743670433531,5.49554,1819.7,1819.3,5.66810627]
[1743670433740,0.17681812,1819.6,1819.3,5.66810627]
[1743670433935,5.49554,1819.7,1819.3,5.66810627]
[1743670434121,6.78287483,1819.7,1819.3,5.49646]
[1743670434342,0.17681812,1819.6,1819.3,5.49646]
[1743670434548,5.49554,1819.7,1819.4,5.49631]
[1743670434764,0.17681812,1819.6,1819.3,5.49646]
[1743670434945,5.49572,1819.6,1819.3,5.49646]
[1743670435244,5.67283653,1819.5,1819.2,6.26339]
[1743670435431,5.262,1819.4,1819.2,6.26339]
[1743670435768,0.17669335,1819.3,1819.2,6.26339]
[1743670436070,0.17669335,1819.3,1819.2,0.7665]
[1743670436771,0.17669335,1819.3,1819.1,5.59713]
[1743670436984,5.67343335,1819.3,1819.1,0.1]
[1743670437339,0.17669335,1819.3,1819.1,0.1]
[1743670437735,0.17669335,1819.3,1819.2,5.49692]
[1743670440548,0.17669335,1819.3,1819.1,11.733993]
[1743670440890,0.17669335,1819.3,1819.2,6.04692]
[1743670441096,0.17669335,1819.3,1819.2,6.81312]
[1743670441668,0.17669335,1819.3,1819.2,10.10223483]
[1743670441872,0.17669335,1819.3,1819.2,11.79110949]
[1743670442106,5.262,1819.5,1819.4,6.26021]
[1743670443354,5.262,1819.5,1819.4,6.43196438]
[1743670443554,5.262,1819.8,1819.6,5.49558]
[1743670443755,5.262,1819.8,1819.5,11.54184]
[1743670444158,10.75712,1819.8,1819.5,5.49592]
[1743670444355,10.75712,1819.8,1819.5,10.99181]
[1743670444560,5.262,1819.8,1819.6,5.49566]
[1743670445295,0.17200644,1819.7,1819.6,5.49566]
[1743670445459,0.17200644,1819.7,1819.6,6.594815]
[1743670446202,0.17200644,1819.7,1819.6,1.099155]
[1743670446383,0.17200644,1819.7,1819.4,6.26016]
[1743670446384,5.49574,1819.6,1819.3,5.49648]
[1743670446589,5.262,1819.8,1819.6,5.66743768]
[1743670446903,5.262,1819.8,1819.6,0.17172768]
[1743670447703,10.75716,1819.8,1819.6,0.17172768]
[1743670448004,10.75716,1819.8,1819.5,6.43149768]
[1743670448604,16.25247,1819.8,1819.5,6.43149768]
[1743670448963,6.28571,1819.6,1819.5,0.17172768]
[1743670449163,12.45571,1819.6,1819.5,0.17172768]
[1743670449405,6.96,1819.6,1819.5,0.17172768]
[1743670450010,6.17,1819.6,1819.5,0.17172768]
[1743670451002,6.17,1819.6,1819.4,0.17172768]
[1743670451204,6.25091,1819.5,1819.4,0.17172768]
[1743670451413,18.877743,1819.6,1819.4,0.17172768]
[1743670452607,18.877743,1819.6,1819.3,5.49653]
[1743670452804,5.49607,1819.5,1819.2,5.49677]
[1743670453015,5.262,1819.4,1819.2,5.49677]
[1743670453758,5.262,1819.4,1819.3,0.17176555]
[1743670454112,5.262,1819.4,1819.3,5.66837555]
[1743670454311,5.262,1819.4,1819.3,6.78489011]
[1743670454557,11.432,1819.6,1819.5,5.49601]
[1743670455546,11.432,1819.6,1819.5,5.66777555]
[1743670457944,5.262,1819.6,1819.5,5.66777555]
[1743670460217,5.43524345,1819.6,1819.5,0.17176555]
[1743670460614,5.43524345,1819.6,1819.5,5.66777555]
[1743670461864,5.43524345,1819.6,1819.5,0.17176555]
[1743670462745,6.18894345,1819.6,1819.5,0.17176555]
[1743670464242,11.68465345,1819.6,1819.5,0.17176555]
[1743670464831,13.4026758,1819.6,1819.5,0.17176555]
[1743670465452,5.49631,1819.4,1819.2,0.17176555]
[1743670465764,0.17350371,1819.3,1819.2,0.17176555]
[1743670467050,5.67011371,1819.3,1819.2,0.17176555]
[1743670467247,6.46571371,1819.3,1819.2,0.17176555]
[1743670467567,7.66191608,1819.3,1819.2,0.17176555]
[1743670469802,7.66191608,1819.3,1819.2,0.01366887]
[1743670469803,10.75757653,1819.3,1819.2,0.01366887]
[1743670470093,13.75757653,1819.3,1819.2,0.01366887]
[1743670470259,14.1658581,1819.3,1819.2,0.01366887]
[1743670470458,5.49692,1819.2,1819.1,0.1]
[1743670470682,13.09272344,1819.2,1819.1,0.1]
[1743670470877,13.26459722,1819.2,1819.1,0.1]
[1743670471188,19.43459722,1819.2,1819.1,0.1]
[1743670472292,22.43459722,1819.2,1819.1,0.1]
[1743670484736,22.43559722,1819.2,1819.1,0.1]
[1743670488382,9.34187378,1819.2,1819.1,0.1]
[1743670488583,14.60587378,1819.2,1819.1,0.1]
[1743670488913,20.10279378,1819.2,1819.1,0.1]
[1743670489420,6.34187378,1819.2,1819.1,0.1]
[1743670489594,5.43587378,1819.2,1819.1,6.37842]
[1743670489794,0.17187378,1819.2,1819.1,7.57149928]
[1743670490779,0.17187378,1819.2,1819.1,8.12149928]
[1743670490985,0.17187378,1819.2,1819.1,8.29326987]
[1743670491615,0.17187378,1819.2,1819.1,6.55019059]
[1743670492319,0.17187378,1819.2,1819.1,6.37842]
[1743670495490,0.17187378,1819.2,1819.1,6.55018981]
[1743670496303,0.17187378,1819.2,1819.1,6.60515887]
[1743670496601,5.263,1819.3,1819.2,5.49692]
[1743670496795,5.40517454,1819.3,1819.2,7.48290789]
[1743670497718,5.40517454,1819.3,1819.2,8.03290789]
[1743670497926,5.40517454,1819.3,1819.2,8.2046777]
[1743670499721,0.14217454,1819.3,1819.2,8.2046777]
[1743670500103,11.433,1819.5,1819.4,5.49631]
[1743670501316,11.433,1819.5,1819.4,6.61275798]
[1743670501823,5.263,1819.5,1819.4,6.61275798]
[1743670502395,5.49543,1819.7,1819.4,12.10895798]
[1743670502597,5.263,1819.6,1819.5,6.28227]
[1743670503216,5.263,1819.6,1819.5,0.7863]
[1743670504499,15.56678045,1820.1,1819.7,5.49541]
[1743670504831,10.75659,1820.0,1819.7,5.49541]
[1743670505303,0.14278067,1819.9,1819.7,5.49541]
[1743670506143,0.14278067,1819.9,1819.8,6.301]
[1743670506308,0.14278067,1819.9,1819.8,7.480629]
[1743670506503,5.262,1820.3,1820.2,5.49369]
[1743670506939,5.262,1820.3,1820.2,6.32089]
[1743670507637,55.16415045,1820.9,1820.6,5.49267]
[1743670507814,5.262,1820.8,1820.6,6.31987]
[1743670508203,5.262,1820.8,1820.6,11.81245]
[1743670508404,5.262,1820.8,1820.7,5.49237]
[1743670509457,5.262,1820.8,1820.6,6.31978]
[1743670510008,5.262,1820.8,1820.7,5.49239]
[1743670511360,5.49126,1821.1,1820.7,6.673602]
[1743670511504,6.17,1821.3,1821.0,5.49128]
[1743670511843,5.261,1821.2,1821.1,5.49115]
[1743670512062,5.261,1821.2,1821.0,5.49128]
[1743670512403,5.261,1821.2,1821.0,10.9826]
[1743670512609,5.261,1821.2,1821.0,5.49128]
[1743670512812,5.261,1821.2,1821.1,5.49118]
[1743670513011,10.75198,1821.2,1820.8,6.27614]
[1743670513231,10.75198,1821.2,1820.8,6.903754]
[1743670513438,10.75198,1821.2,1820.8,12.395694]
[1743670514058,5.49118,1821.1,1820.8,6.903754]
[1743670514410,10.75198,1821.2,1820.8,6.903754]
[1743670515135,16.24304,1821.2,1820.8,6.903754]
[1743670515318,10.75198,1821.2,1820.9,5.49176]
[1743670516723,5.49139,1821.1,1820.8,0.7842]
[1743670516926,5.49139,1821.1,1820.7,5.49234]
[1743670516927,5.49211,1820.8,1820.6,0.7615]
[1743670517138,5.49211,1820.8,1820.5,5.49289]
[1743670517139,10.75111,1820.8,1820.5,5.49289]
[1743670518137,5.49243,1820.7,1820.4,0.7615]
[1743670518518,5.49243,1820.7,1820.4,6.25475]
[1743670519622,11.74816,1820.7,1820.3,5.49335]
[1743670519946,5.49295,1820.6,1820.2,6.26056]
[1743670520126,6.17,1820.6,1820.3,5.49359]
[1743670520328,0.1582007,1820.5,1820.3,5.49359]
[1743670521046,10.75155,1820.4,1820.0,6.27665]
[1743670521247,10.75155,1820.4,1819.8,1.179629]
[1743670521248,10.98806,1820.2,1819.8,6.27727]
[1743670521426,5.6511256,1820.1,1819.8,6.27727]
[1743670521622,5.258,1820.0,1819.7,5.49539]
[1743670521813,0.15673443,1819.9,1819.7,5.49539]
[1743670522018,0.15673443,1819.9,1819.7,5.49527]
[1743670522215,0.15673443,1819.9,1819.7,11.04545791]
[1743670522551,0.15673443,1819.9,1819.8,5.4951]
[1743670524485,0.15673443,1819.9,1819.8,6.88434679]
[1743670525054,4.43e-06,1819.9,1819.8,6.88434679]
[1743670525257,5.259,1820.5,1820.4,6.32459]
[1743670525446,5.39695998,1820.5,1820.4,5.99255479]
[1743670526354,5.39695998,1820.5,1820.4,5.16125479]
[1743670527422,5.39695998,1820.5,1820.3,10.98694]
[1743670528736,5.39695998,1820.5,1820.4,5.49329]
[1743670532225,10.88996998,1820.5,1820.2,6.25696]
[1743670532426,5.39695998,1820.5,1820.4,5.49329]
[1743670532647,0.13795998,1820.5,1820.4,5.49329]
[1743670532843,5.258,1820.7,1820.6,5.49269]
[1743670533159,5.39609726,1820.7,1820.6,5.49269]
[1743670536941,5.39609726,1820.7,1820.6,5.66432462]
[1743670540648,5.39609726,1820.7,1820.6,7.53564308]
[1743670540649,0.13809726,1820.7,1820.6,7.53564308]
[1743670540855,5.258,1820.8,1820.7,5.49239]
[1743670541056,0.14411076,1820.8,1820.7,5.49239]
[1743670541570,0.14411076,1820.8,1820.7,5.5473075]
[1743670542232,0.14411076,1820.8,1820.6,8.08564308]
[1743670542233,0.14411076,1820.8,1820.6,5.66432462]
[1743670542589,6.17652184,1820.8,1820.6,0.17163462]
[1743670542736,6.17652184,1820.8,1820.7,0.17163462]
[1743670543545,0.14411076,1820.8,1820.7,0.17163462]
[1743670543747,0.14411076,1820.8,1820.7,5.66402462]
[1743670543947,6.41050076,1820.8,1820.7,0.17163462]
[1743670544333,15.58050076,1820.8,1820.7,0.17163462]
[1743670546879,6.31329,1820.3,1820.0,0.17163462]
[1743670547174,5.40162176,1820.2,1820.0,0.17163462]
[1743670548380,5.40162176,1820.2,1819.9,5.66628462]
[1743670548581,5.40162176,1820.2,1819.9,6.85999808]
[1743670549178,5.40162176,1820.2,1820.0,5.49447]
[1743670549384,5.40162176,1820.2,1819.9,6.85999808]
[1743670549676,5.40162176,1820.2,1819.9,5.66628462]
[1743670549877,5.40162176,1820.2,1819.9,5.49465]
[1743670550179,0.14462176,1820.2,1819.8,0.7758]
[1743670550346,5.258,1820.1,1819.8,0.83074073]
[1743670550682,6.17,1820.3,1820.2,5.4939]
[1743670550847,11.428,1820.3,1820.2,6.671807]
[1743670551048,6.17,1820.3,1820.2,6.671807]
[1743670551280,5.258,1820.4,1820.3,6.30189]
[1743670551573,5.258,1820.4,1820.3,6.85189]
[1743670552153,5.258,1820.4,1820.3,6.30189]
[1743670552475,5.258,1820.4,1820.3,5.49359]
[1743670552851,5.258,1820.4,1820.3,5.66525493]
[1743670554462,5.258,1820.4,1820.3,0.17166493]
[1743670555470,5.258,1820.4,1820.3,5.66525493]
[1743670555782,0.28470981,1820.6,1820.5,5.49299]
[1743670555982,5.54270981,1820.6,1820.5,5.49299]
[1743670556973,5.54270981,1820.6,1820.5,5.66465493]
[1743670558849,5.54270981,1820.6,1820.5,5.49299]
[1743670560551,5.54270981,1820.6,1820.5,6.672555]
[1743670561455,5.54270981,1820.6,1820.5,6.84420089]
[1743670562680,5.54270981,1820.6,1820.5,5.66463589]
[1743670562885,5.54270981,1820.6,1820.5,0.17164589]
[1743670563087,24.13116026,1820.6,1820.5,0.17164589]
[1743670564358,6.316,1820.3,1819.9,5.66635589]
[1743670564596,5.257,1820.2,1819.9,5.66635589]
[1743670564898,5.257,1820.2,1819.9,6.86254948]
[1743670565255,0.14179176,1820.1,1819.9,6.86254948]
[1743670566294,0.14179176,1820.1,1819.9,12.35720948]
[1743670567281,0.14179176,1820.1,1819.9,6.86249948]
[1743670568092,0.14179176,1820.1,1819.9,6.69085359]
[1743670570390,0.14179176,1820.1,1819.9,6.8625481]
[1743670571287,0.14179176,1820.1,1819.9,5.66635451]
[1743670572592,0.14179176,1820.1,1820.0,6.3034]
[1743670573090,0.14179176,1820.1,1820.0,6.47509451]
[1743670573256,5.39979176,1820.1,1820.0,6.53003675]
[1743670573458,0.14179176,1820.1,1820.0,7.08003507]
[1743670573774,0.28493429,1820.3,1820.2,5.4939]
[1743670574084,5.258,1820.4,1820.1,10.98815]
[1743670574290,5.54267867,1820.4,1820.2,5.49386]
[1743670576357,5.54267867,1820.4,1820.2,5.66545451]
[1743670576557,5.54267867,1820.4,1820.3,5.49359]
[1743670577000,5.258,1820.4,1820.3,5.49359]
[1743670577195,5.54266961,1820.4,1820.3,5.49359]
[1743670577557,5.54266961,1820.4,1820.2,0.17169451]
[1743670577761,6.24799,1820.3,1820.2,0.17169451]
[1743670577962,6.24799,1820.3,1820.1,0.17169451]
[1743670578855,0.7544,1820.3,1820.1,0.17169451]
[1743670579696,0.7544,1820.3,1820.0,10.98877]
[1743670580295,0.12870552,1820.2,1820.1,5.4942]
[1743670580492,0.28466961,1820.4,1820.3,5.49359]
[1743670580694,5.54166961,1820.4,1820.3,5.49359]
[1743670587508,5.54166961,1820.4,1820.2,11.15921451]
[1743670587688,5.54166961,1820.4,1820.3,0.17169451]
[1743670592510,12.96742657,1820.4,1820.3,0.17169451]
[1743670592876,18.85275696,1820.4,1820.3,0.17169451]
[1743670593121,22.12653724,1820.4,1820.3,0.17169451]
[1743670593491,5.4942,1820.1,1820.0,0.17169451]
[1743670593681,12.36176045,1820.1,1820.0,0.17169451]
[1743670593881,14.1473395,1820.1,1820.0,0.17169451]
[1743670594588,11.81262,1819.8,1819.5,0.17169451]
[1743670594789,5.257,1819.7,1819.5,0.17169451]
[1743670595312,0.11776653,1819.6,1819.5,0.17169451]
[1743670595515,5.257,1819.7,1819.5,0.17169451]
[1743670595681,5.257,1819.7,1819.6,0.17169451]
[1743670597214,5.257,1819.7,1819.5,0.17169451]
[1743670598414,5.49571,1819.6,1819.5,0.17169451]
[1743670598714,5.49571,1819.6,1819.4,0.17169451]
[1743670598715,6.26071,1819.5,1819.4,0.17169451]
[1743670598917,15.54807045,1819.5,1819.4,0.17169451]
[1743670599483,15.96833546,1819.5,1819.4,0.17169451]
[1743670599678,17.43641487,1819.5,1819.4,0.17169451]
[1743670600104,5.49692,1819.3,1819.1,0.1]
[1743670600303,5.258,1819.2,1819.1,0.1]
[1743670603520,11.50892,1819.2,1819.1,0.1]
[1743670604486,17.67892,1819.2,1819.1,0.1]
[1743670605716,16.92492,1819.2,1819.1,0.1]
[1743670610389,17.03300372,1819.2,1819.1,0.1]
[1743670611225,17.84700372,1819.2,1819.1,0.1]
[1743670612922,11.53708372,1819.2,1819.1,0.1]
[1743670613226,11.53708372,1819.2,1819.1,1.287599]
[1743670613425,11.53708372,1819.2,1819.1,0.1]
[1743670614119,6.27808372,1819.2,1819.1,0.1]
[1743670614321,11.53708372,1819.2,1819.1,5.59722]
[1743670616203,5.36708372,1819.2,1819.1,5.59722]
[1743670618509,0.10808372,1819.2,1819.1,7.01478873]
[1743670618707,0.10808372,1819.2,1819.1,8.57774265]
[1743670619048,5.259,1819.5,1819.4,6.28501]
[1743670619346,6.17,1819.8,1819.5,5.49573]
[1743670619560,5.49497,1819.9,1819.8,5.4951]
[1743670619561,6.17,1819.9,1819.8,5.4951]
[1743670619742,11.429,1819.9,1819.8,6.2747]
[1743670620043,5.259,1820.1,1819.9,5.49459]
[1743670620635,11.66301,1820.5,1820.1,5.4942]
[1743670620811,6.17,1820.5,1820.3,6.30759]
[1743670621119,5.259,1820.7,1820.5,5.49297]
[1743670623740,5.259,1820.7,1820.3,6.94368272]
[1743670624142,10.75146,1820.7,1820.4,5.49329]
[1743670624343,5.259,1820.7,1820.4,5.49329]
[1743670624657,5.259,1820.7,1820.4,10.98641]
[1743670625154,5.259,1820.7,1820.4,5.49312]
[1743670625824,5.259,1820.7,1820.3,6.94382272]
[1743670625825,10.75141,1820.7,1820.3,6.94382272]
[1743670626122,10.75141,1820.7,1820.3,6.30757]
[1743670627860,10.75141,1820.7,1820.3,11.80103]
[1743670628161,10.75141,1820.7,1820.3,6.30746]
[1743670629047,6.17,1820.8,1820.4,0.05492925]
[1743670629357,5.257,1820.7,1820.5,10.98578]
[1743670629541,5.256,1820.7,1820.4,5.49329]
[1743670629743,10.74843,1820.7,1820.4,5.49329]
[1743670629943,6.17,1820.8,1820.7,6.32539]
[1743670630133,5.256,1820.8,1820.7,6.32539]
[1743670633658,6.4547247,1821.2,1820.7,0.833]
[1743670633863,0.2847247,1821.2,1821.1,6.26828]
[1743670634037,0.2847247,1821.2,1821.1,8.04915226]
[1743670634374,11.425,1821.8,1821.7,5.48937]
[1743670634536,5.255,1821.8,1821.7,5.48937]
[1743670635646,0.1,1821.9,1821.8,5.48907]
[1743670636155,0.1,1821.9,1821.8,5.54395253]
[1743670636358,0.1,1821.9,1821.8,6.72819478]
[1743670636853,0.1,1821.9,1821.8,7.27819478]
[1743670637658,11.60433045,1822.5,1821.8,7.27819478]
[1743670637659,6.9609,1822.8,1821.9,0.55]
[1743670637853,12.2149,1822.8,1822.5,5.48696]
[1743670638064,11.424,1822.8,1822.5,5.48696]
[1743670638237,11.424,1822.8,1822.4,6.30379]
[1743670638571,11.424,1822.8,1822.4,11.79094]
[1743670638770,11.424,1822.8,1822.5,0.05486413]
[1743670638936,0.1084653,1822.7,1822.5,0.05486413]
[1743670639136,0.1084653,1822.7,1822.4,11.79094]
[1743670639349,0.1084653,1822.7,1822.4,7.482844]
[1743670639568,0.1084653,1822.7,1822.2,0.55]
[1743670639569,0.1084653,1822.7,1822.2,6.03781]
[1743670639740,0.1084653,1822.7,1822.3,5.48744]
[1743670639741,0.7509,1822.6,1822.3,5.48744]
[1743670639941,0.12363218,1822.5,1822.2,5.48781]
[1743670640150,5.61061218,1822.5,1822.2,5.48781]
[1743670640355,5.61061218,1822.5,1822.1,5.48814]
[1743670640682,5.61061218,1822.5,1822.2,5.48769]
[1743670640683,0.12363218,1822.5,1822.2,5.48769]
[1743670641377,0.12363218,1822.5,1822.3,5.48746]
[1743670641677,5.252,1822.6,1822.4,0.7856]
[1743670641875,5.252,1822.6,1822.3,5.48746]
[1743670642037,5.252,1822.6,1822.1,7.523519]
[1743670642038,5.48716,1822.5,1822.1,7.523519]
[1743670642237,6.17,1822.8,1822.4,0.8031]
[1743670642443,11.422,1822.8,1822.5,5.54164936]
[1743670642847,16.90808,1822.8,1822.4,6.29036]
[1743670643250,16.90808,1822.8,1822.5,0.05486321]
[1743670644070,0.1,1822.9,1822.7,5.48636]
[1743670644270,0.1,1822.9,1822.8,6.034696]
[1743670644572,0.1,1822.9,1822.8,5.48606]
[1743670645765,0.1,1822.9,1822.6,5.48662]
[1743670645974,3.11736045,1822.7,1822.1,5.48816]
[1743670646277,5.251,1822.6,1822.4,5.48725]
[1743670646443,5.251,1822.6,1822.3,5.48737]
[1743670647067,10.73766,1822.6,1822.1,5.48791]
[1743670647268,5.48712,1822.5,1822.1,10.97589]
[1743670647468,10.73769,1822.6,1822.2,5.54270404]
[1743670647663,5.251,1822.6,1822.3,5.48744]
[1743670648180,10.73767,1822.6,1822.3,5.48744]
[1743670649282,16.22461,1822.6,1822.2,5.48783]
[1743670649581,5.48697,1822.5,1822.1,5.488]
[1743670649784,5.48697,1822.5,1822.1,10.97603]
[1743670650287,12.360181,1822.6,1822.2,5.48777]
[1743670650473,10.73772,1822.6,1822.2,5.48777]
[1743670650653,16.22461,1822.6,1822.2,5.48777]
[1743670651402,16.22461,1822.6,1822.2,10.97552]
[1743670651583,10.73772,1822.6,1822.2,10.97552]
[1743670651897,5.48697,1822.5,1822.2,5.48775]
[1743670652066,0.7785,1822.4,1822.0,0.7725]
[1743670652255,5.48701,1822.5,1822.2,5.4878]
[1743670654302,5.25,1822.6,1822.1,0.7927]
[1743670654515,5.25,1822.6,1822.3,5.48735]
[1743670654693,5.25,1822.6,1822.3,6.036085]
[1743670654852,6.17,1822.8,1822.5,0.7886]
[1743670655059,5.25,1822.7,1822.5,6.27544]
[1743670655268,5.36201617,1822.7,1822.5,11.76226]
[1743670656078,5.36201617,1822.7,1822.5,6.27542]
[1743670657085,5.36201617,1822.7,1822.4,5.48721]
[1743670657290,6.12821617,1822.7,1822.3,6.24026]
[1743670657507,11.61470617,1822.7,1822.3,12.351756]
[1743670657703,11.61470617,1822.7,1822.3,6.864196]
[1743670657877,5.48677,1822.6,1822.3,11.78245786]
[1743670658074,11.61470617,1822.7,1822.3,11.72759]
[1743670658301,0.11303785,1822.5,1822.3,11.72759]
[1743670658502,16.98922,1822.7,1822.3,6.24012]
[1743670658659,16.98922,1822.7,1822.3,6.29498979]
[1743670658660,0.11299642,1822.4,1822.3,6.29498979]
[1743670658859,5.48666,1822.6,1822.3,7.41840198]
[1743670659087,0.11299642,1822.4,1822.3,6.24012]
[1743670659300,0.11299642,1822.4,1822.2,5.48783]
[1743670659301,10.97362,1822.6,1822.2,5.48775]
[1743670659499,0.11299642,1822.4,1822.2,11.03035348]
[1743670659658,10.97362,1822.6,1822.2,10.97548]
[1743670659858,0.112955,1822.3,1822.2,11.1469515]
[1743670660094,11.50265,1822.7,1822.2,0.1714715]
[1743670660268,0.112955,1822.3,1822.2,0.1714715]
[1743670660792,5.48701,1822.5,1822.2,5.71421569]
[1743670660988,0.112955,1822.3,1822.2,0.1714715]
[1743670661171,5.48728,1822.4,1822.2,0.1714715]
[1743670661363,11.679625,1822.3,1822.2,0.1714715]
[1743670662293,17.167445,1822.3,1822.0,0.1714715]
[1743670663394,11.679625,1822.3,1822.0,0.1714715]
[1743670663775,11.679625,1822.3,1822.1,0.1714715]
[1743670664899,5.48787,1822.2,1822.1,0.1714715]